bitfinex/quotes_BTCUSD_20251202
["timestamp","ask_amount","ask_price","bid_price","bid_amount"]
[1764699267134,0.00338405,91775.0,91774.0,0.76459138]
[1764699269442,0.01332636,91818.0,91774.0,0.76459138]
[1764699269443,0.01089158,91814.0,91810.0,0.21784067]
[1764699269641,0.01100682,91814.0,91811.0,0.05192]
[1764699269909,0.00011524,91814.0,91811.0,0.06281194]
[1764699270219,0.21783431,91813.0,91811.0,0.05192]
[1764699270406,0.21783644,91812.0,91811.0,0.01748]
[1764699270792,0.21783431,91813.0,91811.0,0.01748]
[1764699271193,0.21783644,91812.0,91811.0,0.01748]
[1764699271396,0.21783644,91812.0,91811.0,0.01848]
[1764699271920,0.21783644,91812.0,91811.0,0.02048]
[1764699272150,0.21783644,91812.0,91811.0,0.01848]
[1764699272351,0.21783644,91812.0,91811.0,0.02148]
[1764699272559,0.21783431,91813.0,91811.0,0.02148]
[1764699272692,0.21783644,91812.0,91811.0,0.02048]
[1764699273117,0.21783644,91812.0,91811.0,0.02148]
[1764699274749,0.21783644,91812.0,91811.0,0.003222]
[1764699274947,0.21784881,91807.0,91805.0,0.03664438]
[1764699275151,0.21783644,91812.0,91805.0,0.03664438]
[1764699275152,0.0163244,91806.0,91805.0,0.24360478]
[1764699275409,0.00011524,91814.0,91813.0,0.28802407]
[1764699275610,0.03267,91855.0,91813.0,2.45571299]
[1764699275820,0.0163244,91864.0,91857.0,0.22861621]
[1764699276033,0.00025032,91860.0,91859.0,0.0246]
[1764699276863,0.00025032,91860.0,91859.0,0.06906]
[1764699277306,0.00025032,91860.0,91859.0,0.19646299]
[1764699277558,0.00025032,91860.0,91859.0,0.21490299]
[1764699278139,0.00025032,91860.0,91859.0,0.21690299]
[1764699279160,0.00025032,91860.0,91859.0,0.23884474]
[1764699279362,0.00025032,91860.0,91859.0,0.56184474]
[1764699279669,0.00025032,91860.0,91859.0,0.53990299]
[1764699280204,0.00025032,91860.0,91859.0,0.53890299]
[1764699280404,0.00025032,91860.0,91859.0,0.55884474]
[1764699280621,0.00025032,91860.0,91859.0,0.56284474]
[1764699281370,0.00025032,91860.0,91859.0,0.54090299]
[1764699281780,0.00147062,91860.0,91859.0,0.29078491]
[1764699282187,0.00147062,91860.0,91859.0,0.02144]
[1764699282926,0.00147062,91860.0,91859.0,0.16784]
[1764699284547,0.00147062,91860.0,91859.0,0.1504]
[1764699284946,0.00147062,91860.0,91859.0,0.16784]
[1764699285148,0.00147062,91860.0,91859.0,0.1504]
[1764699285372,0.00147062,91860.0,91859.0,0.18978175]
[1764699287593,0.00147062,91860.0,91859.0,0.21155424]
[1764699290827,0.00147062,91860.0,91859.0,0.42927923]
[1764699291142,0.00147062,91860.0,91859.0,0.40750674]
[1764699293188,0.00147062,91860.0,91859.0,0.39006674]
[1764699293352,0.00147062,91860.0,91859.0,0.40750674]
[1764699294129,0.00147062,91860.0,91859.0,0.38556499]
[1764699294313,0.00147062,91860.0,91859.0,0.40750674]
[1764699294718,0.00147062,91860.0,91859.0,0.39006674]
[1764699294919,0.00147062,91860.0,91859.0,0.38556499]
[1764699295119,0.00147062,91860.0,91859.0,0.40750674]
[1764699297964,0.00147062,91860.0,91859.0,0.79302973]
[1764699298803,0.00147062,91860.0,91859.0,0.76409781]
[1764699299211,0.00147062,91860.0,91859.0,0.74665781]
[1764699299417,0.00147062,91860.0,91859.0,0.76409781]
[1764699299617,0.00247062,91860.0,91859.0,0.74665781]
[1764699299818,0.00247062,91860.0,91859.0,0.68603074]
[1764699300229,0.00247062,91860.0,91859.0,0.36113482]
[1764699300454,0.00247062,91860.0,91858.0,0.61772617]
[1764699300455,0.04751062,91860.0,91858.0,0.4]
[1764699300659,0.27908939,91859.0,91858.0,0.4]
[1764699300874,0.34433939,91859.0,91858.0,0.4]
[1764699301524,0.3663314,91859.0,91858.0,0.25748]
[1764699301723,0.01088743,91849.0,91837.0,0.01088885]
[1764699301951,0.0163244,91840.0,91837.0,0.01088885]
[1764699302174,0.0163244,91840.0,91838.0,0.21777477]
[1764699302462,0.23409521,91840.0,91836.0,0.01088897]
[1764699302628,0.01088921,91834.0,91829.0,0.0108898]
[1764699302870,0.04504,91836.0,91832.0,0.01088945]
[1764699302871,0.01088897,91836.0,91832.0,0.01088945]
[1764699303070,0.22866753,91837.0,91834.0,0.21778387]
[1764699303290,0.0163244,91840.0,91838.0,0.21777378]
[1764699303469,0.0163244,91840.0,91837.0,0.01088885]
[1764699303470,0.0272129,91840.0,91836.0,0.01088897]
[1764699303672,0.01088933,91833.0,91828.0,0.01088992]
[1764699303880,0.01088933,91833.0,91825.0,0.01089028]
[1764699303881,0.2177992,91828.0,91820.0,0.01089087]
[1764699304084,0.21783245,91814.0,91806.0,0.06488]
[1764699304297,0.21783245,91814.0,91801.0,0.02178625]
[1764699304298,0.21785899,91803.0,91801.0,0.02178625]
[1764699304501,0.0163244,91802.0,91797.0,0.21787177]
[1764699304702,0.0163244,91807.0,91806.0,0.22874206]
[1764699305252,0.0163244,91807.0,91806.0,0.01089253]
[1764699305463,0.0163244,91807.0,91805.0,0.21785101]
[1764699305682,0.0163244,91825.0,91814.0,0.01089158]
[1764699305894,0.0163244,91825.0,91816.0,0.2287163]
[1764699306135,0.0163244,91825.0,91814.0,0.01100682]
[1764699306136,0.26343573,91817.0,91814.0,0.00011524]
[1764699306305,0.21782883,91816.0,91814.0,0.00011524]
[1764699306513,0.21781391,91822.0,91815.0,0.21782933]
[1764699306820,0.0163244,91840.0,91828.0,0.01088992]
[1764699307021,0.0163244,91840.0,91831.0,0.01088956]
[1764699307022,0.01088885,91837.0,91831.0,0.01088956]
[1764699307192,0.01088909,91835.0,91830.0,0.22868133]
[1764699307397,0.22867407,91834.0,91830.0,0.01088968]
[1764699307597,0.22868201,91831.0,91828.0,0.01088992]
[1764699307800,0.01088956,91831.0,91828.0,0.01744]
[1764699308008,0.03655,91829.0,91828.0,0.23523849]
[1764699308362,0.0173244,91840.0,91838.0,0.21777462]
[1764699308542,0.01088873,91838.0,91833.0,0.03328]
[1764699308785,0.24598483,91840.0,91836.0,0.01088897]
[1764699308991,0.21777313,91839.0,91835.0,0.21777976]
[1764699309197,0.21777313,91839.0,91834.0,0.01088921]
[1764699309198,0.22866416,91838.0,91834.0,0.01088921]
[1764699309619,0.0163244,91840.0,91836.0,0.01088897]
[1764699309824,0.0163244,91840.0,91833.0,0.04416933]
[1764699309825,0.01088873,91838.0,91833.0,0.03328]
[1764699309971,0.01088873,91838.0,91833.0,0.26195518]
[1764699310179,0.01088885,91837.0,91833.0,0.04416933]
[1764699310380,0.22866912,91836.0,91833.0,0.04416933]
[1764699310585,0.22866912,91836.0,91833.0,0.03328]
[1764699311131,0.22866912,91836.0,91826.0,0.01089016]
[1764699311132,0.01088956,91831.0,91824.0,0.01089039]
[1764699311342,0.01088968,91830.0,91826.0,0.21780201]
[1764699311509,0.22867923,91832.0,91828.0,0.22868683]
[1764699311710,0.01088945,91832.0,91828.0,0.01088992]
[1764699312012,0.01088945,91832.0,91829.0,0.0108898]
[1764699312358,0.00034877,91830.0,91829.0,0.0108898]
[1764699312561,0.00034877,91830.0,91828.0,0.01088992]
[1764699312820,0.27461563,91829.0,91828.0,0.01744]
[1764699313226,0.27461563,91829.0,91828.0,0.41744]
[1764699313432,0.04592971,91829.0,91828.0,0.41744]
[1764699313888,0.04592971,91829.0,91828.0,0.4]
[1764699314349,0.00031971,91829.0,91828.0,0.4]
[1764699314573,0.00031971,91829.0,91828.0,0.44584]
[1764699314779,0.00031971,91829.0,91828.0,0.86037175]
[1764699315020,0.00031971,91829.0,91828.0,0.84482767]
[1764699315223,0.00031971,91829.0,91828.0,0.86037175]
[1764699315855,0.00031971,91829.0,91828.0,0.86137175]
[1764699316065,0.00031971,91829.0,91828.0,0.78628]
[1764699316287,0.00731971,91829.0,91828.0,0.76884]
[1764699316534,0.00731971,91829.0,91828.0,0.401]
[1764699316535,0.05292971,91829.0,91828.0,0.401]
[1764699316729,0.05292971,91829.0,91828.0,0.41844]
[1764699316730,0.00031971,91829.0,91828.0,0.41844]
[1764699316890,0.00031971,91829.0,91828.0,0.41744]
[1764699317083,0.00031971,91829.0,91828.0,1.07466849]
[1764699317286,0.00031971,91829.0,91828.0,1.09661024]
[1764699317483,0.00031971,91829.0,91828.0,1.07366849]
[1764699317860,0.00031971,91829.0,91828.0,0.61879849]
[1764699318070,0.00031971,91829.0,91828.0,0.401]
[1764699318420,0.04486971,91829.0,91828.0,0.41844]
[1764699318853,0.04486971,91829.0,91828.0,0.63623849]
[1764699319132,0.03686971,91829.0,91828.0,0.63523849]
[1764699319362,0.03686971,91829.0,91828.0,0.63723849]
[1764699319534,0.03686971,91829.0,91828.0,0.63523849]
[1764699319740,0.03686971,91829.0,91828.0,0.41744]
[1764699319937,0.03686971,91829.0,91828.0,0.41944]
[1764699320248,0.03686971,91829.0,91828.0,0.42044]
[1764699320394,0.25466583,91829.0,91828.0,0.42044]
[1764699321011,0.30027583,91829.0,91828.0,0.42044]
[1764699321444,0.30027583,91829.0,91828.0,0.403]
[1764699322164,0.39526784,91829.0,91828.0,0.403]
[1764699322746,0.39526784,91829.0,91828.0,0.003]
[1764699323294,0.39526784,91829.0,91828.0,0.002]
[1764699323641,0.37327583,91829.0,91828.0,0.002]
[1764699323901,0.39526784,91829.0,91828.0,0.002]
[1764699324102,0.15547971,91829.0,91821.0,0.01089075]
[1764699324254,0.01088885,91837.0,91826.0,0.01089016]
[1764699324474,0.002,91829.0,91826.0,0.01089016]
[1764699324682,0.22869427,91826.0,91821.0,0.01089075]
[1764699324905,0.0163244,91831.0,91824.0,0.01089039]
[1764699325137,0.002,91829.0,91828.0,0.21779629]
[1764699325478,0.0163244,91831.0,91830.0,0.21779374]
[1764699326316,0.0163244,91831.0,91830.0,0.26363374]
[1764699326520,0.0163244,91845.0,91843.0,0.21776191]
[1764699326705,0.0163244,91845.0,91841.0,0.01088838]
[1764699326913,0.0163244,91845.0,91842.0,0.01088826]
[1764699327107,0.21777202,91840.0,91837.0,0.21777531]
[1764699327331,0.01088838,91841.0,91838.0,0.2286619]
[1764699327550,0.21776529,91842.0,91839.0,0.21777163]
[1764699327752,0.2178807,91842.0,91839.0,0.21777163]
[1764699327956,0.00011541,91842.0,91841.0,0.21776766]
[1764699328173,0.00011541,91842.0,91841.0,0.25104766]
[1764699328747,0.00011541,91842.0,91841.0,0.29688766]
[1764699328947,0.00011541,91842.0,91841.0,0.31432766]
[1764699329363,0.00011541,91842.0,91841.0,0.26848766]
[1764699329788,0.04572541,91842.0,91840.0,0.4]
[1764699329999,0.04572541,91842.0,91841.0,0.001]
[1764699330000,0.2908807,91842.0,91841.0,0.001]
[1764699330261,0.3364907,91842.0,91841.0,0.003]
[1764699330465,0.04572541,91842.0,91841.0,0.21876766]
[1764699330631,0.26418815,91842.0,91841.0,0.001]
[1764699331143,0.26418818,91842.0,91840.0,0.4]
[1764699331353,0.26349073,91842.0,91840.0,0.4]
[1764699331680,0.00011541,91842.0,91840.0,0.4]
[1764699331888,0.00011541,91842.0,91841.0,0.26360766]
[1764699332094,0.00011541,91842.0,91841.0,0.33319766]
[1764699332759,0.00011541,91842.0,91841.0,0.26360766]
[1764699333058,0.00011541,91842.0,91840.0,0.61876959]
[1764699333257,0.00011541,91842.0,91841.0,0.01744]
[1764699333871,0.00011541,91842.0,91840.0,0.61876987]
[1764699334300,0.00011541,91842.0,91840.0,0.401]
[1764699334503,0.00011541,91842.0,91840.0,0.61776955]
[1764699334878,0.00011541,91842.0,91841.0,0.001]
[1764699335286,0.00011541,91842.0,91841.0,0.21776766]
[1764699337547,0.00011541,91842.0,91841.0,0.26275766]
[1764699337748,0.00081286,91842.0,91841.0,0.26275766]
[1764699338400,0.00081286,91842.0,91841.0,0.32638766]
[1764699338615,0.00081286,91842.0,91841.0,0.34932941]
[1764699338831,0.00081286,91842.0,91841.0,0.35032941]
[1764699339030,0.00081286,91842.0,91841.0,0.67332941]
[1764699339227,0.00081286,91842.0,91841.0,0.67232941]
[1764699339650,0.00081286,91842.0,91841.0,0.67332941]
[1764699339937,0.00081286,91842.0,91841.0,0.26375766]
[1764699340222,0.00081286,91842.0,91841.0,0.002]
[1764699340339,0.21857815,91842.0,91841.0,0.01844]
[1764699340546,0.00081286,91842.0,91841.0,0.01744]
[1764699340798,0.00881286,91842.0,91841.0,0.23520766]
[1764699341000,0.27004815,91842.0,91841.0,0.01744]
[1764699341177,0.04428286,91842.0,91841.0,0.01744]
[1764699341387,0.04428286,91842.0,91840.0,0.61776925]
[1764699341584,0.04358541,91842.0,91840.0,0.61776925]
[1764699341954,0.04358541,91842.0,91840.0,0.4]
[1764699341955,0.00011541,91842.0,91840.0,0.4]
[1764699342148,0.00011541,91842.0,91841.0,0.04499]
[1764699342468,0.00011541,91842.0,91841.0,0.34816442]
[1764699342671,0.00011541,91842.0,91841.0,0.26275766]
[1764699343864,0.00011541,91842.0,91841.0,0.32638766]
[1764699344090,0.21773083,91857.0,91853.0,0.2286253]
[1764699344211,0.21773083,91857.0,91854.0,0.22862301]
[1764699344411,0.21773083,91857.0,91854.0,0.01088684]
[1764699344412,0.21773266,91856.0,91854.0,0.01088684]
[1764699344632,0.22861926,91856.0,91853.0,0.01088696]
[1764699344834,0.06022064,91859.0,91841.0,0.002]
[1764699344835,0.0108879,91845.0,91841.0,0.002]
[1764699345057,0.23408774,91843.0,91841.0,0.002]
[1764699345463,0.0163244,91843.0,91841.0,0.002]
[1764699345807,0.0163244,91843.0,91841.0,0.21776658]
[1764699346157,0.01088648,91857.0,91850.0,0.22863226]
[1764699346373,0.01088648,91857.0,91853.0,0.01088696]
[1764699346374,0.21773041,91857.0,91853.0,0.01088696]
[1764699346550,0.21773041,91857.0,91853.0,0.22862589]
[1764699346733,0.0163244,91859.0,91857.0,0.21772915]
[1764699347385,0.01088636,91858.0,91855.0,0.01088672]
[1764699347804,0.0002,91860.0,91858.0,0.21772736]
[1764699348141,0.0002,91860.0,91859.0,0.04499]
[1764699348500,0.0014203,91860.0,91859.0,0.04499]
[1764699348933,0.0014203,91860.0,91859.0,0.26271499]
[1764699349120,0.0014203,91860.0,91859.0,0.21772499]
[1764699350378,0.0014203,91860.0,91859.0,0.21872499]
[1764699350555,0.0014203,91860.0,91859.0,0.26471499]
[1764699351500,0.21914292,91860.0,91859.0,0.002]
[1764699352657,0.32652292,91860.0,91859.0,0.002]
[1764699353194,0.0448903,91860.0,91859.0,0.002]
[1764699353339,0.26261292,91860.0,91859.0,0.002]
[1764699353557,0.0014203,91860.0,91859.0,0.04699]
[1764699353753,0.0014203,91860.0,91859.0,0.26471499]
[1764699354408,0.0014203,91860.0,91859.0,0.28215499]
[1764699357798,0.0014203,91860.0,91859.0,0.34578499]
[1764699358004,0.0014203,91860.0,91859.0,0.36772674]
[1764699359281,0.0014203,91860.0,91859.0,0.34578499]
[1764699359487,0.0014203,91860.0,91859.0,0.85727781]
[1764699359692,0.0014203,91860.0,91859.0,0.87471781]
[1764699360308,0.0014203,91860.0,91859.0,0.85627781]
[1764699360507,0.0014203,91860.0,91859.0,0.77081307]
[1764699360679,0.0014203,91860.0,91859.0,0.78825307]
[1764699360879,0.0084203,91860.0,91859.0,0.78825307]
[1764699361107,0.0084203,91860.0,91859.0,0.87271781]
[1764699361396,0.0084203,91860.0,91859.0,0.85717373]
[1764699361733,0.0084203,91860.0,91859.0,0.87271781]
[1764699361937,0.0014203,91860.0,91859.0,0.87271781]
[1764699362719,0.0074203,91860.0,91859.0,0.87271781]
[1764699363134,0.0074203,91860.0,91859.0,0.75124973]
[1764699364141,0.0074203,91860.0,91859.0,0.64934499]
[1764699364346,0.0074203,91860.0,91859.0,0.66678499]
[1764699365340,0.0074203,91860.0,91859.0,0.68872674]
[1764699366011,0.0074203,91860.0,91859.0,0.66678499]
[1764699366216,0.0074203,91860.0,91859.0,0.68872674]
[1764699367425,0.0074203,91860.0,91859.0,0.54072499]
[1764699367582,0.0074203,91860.0,91859.0,0.27587499]
[1764699368430,0.0074203,91860.0,91859.0,0.68532674]
[1764699368819,0.0074203,91860.0,91859.0,0.74884973]
[1764699368988,0.0014203,91860.0,91859.0,0.74884973]
[1764699369209,0.0014203,91860.0,91859.0,0.75084973]
[1764699369417,0.0014203,91860.0,91859.0,0.74784973]
[1764699369622,0.0024203,91860.0,91859.0,0.74784973]
[1764699369823,0.0094203,91860.0,91859.0,0.74784973]
[1764699370137,0.0094203,91860.0,91859.0,0.86931781]
[1764699370363,0.0002,91890.0,91869.0,2.62516603]
[1764699370574,0.00058462,91890.0,91889.0,0.62906565]
[1764699370791,0.00058462,91890.0,91889.0,0.64650565]
[1764699371011,0.00058462,91890.0,91889.0,0.77353864]
[1764699372452,4.62e-06,91890.0,91889.0,0.77353864]
[1764699372662,0.07383725,91935.0,91909.0,0.23954829]
[1764699372872,0.0003154,91910.0,91909.0,0.36220829]
[1764699373295,0.0003154,91910.0,91909.0,0.74773128]
[1764699373524,0.0003154,91910.0,91909.0,0.64582654]
[1764699373747,0.0003154,91910.0,91909.0,0.66326654]
[1764699374195,0.0003154,91910.0,91909.0,0.27571654]
[1764699374404,0.0003154,91910.0,91909.0,0.34022654]
[1764699376746,0.00176701,91910.0,91909.0,0.75469128]
[1764699377383,0.00176701,91910.0,91909.0,0.73729128]
[1764699377620,0.00176701,91910.0,91909.0,0.75469128]
[1764699377833,0.00176701,91910.0,91909.0,0.67022654]
[1764699378317,0.00176701,91910.0,91909.0,0.69216829]
[1764699378751,0.00176701,91910.0,91909.0,0.67022654]
[1764699378975,0.00176701,91910.0,91909.0,0.69216829]
[1764699379204,0.00176701,91910.0,91909.0,0.69013829]
[1764699379428,0.00176701,91910.0,91909.0,0.67273829]
[1764699379689,0.00176701,91910.0,91909.0,0.69013829]
[1764699380186,0.00176701,91910.0,91909.0,0.75266128]
[1764699381355,0.00176701,91910.0,91909.0,0.73526128]
[1764699381568,0.00176701,91910.0,91909.0,0.66819654]
[1764699381795,0.00176701,91910.0,91909.0,0.65079654]
[1764699381998,0.00176701,91910.0,91909.0,0.66819654]
[1764699382835,0.00176701,91910.0,91909.0,0.69013829]
[1764699383937,0.00176701,91910.0,91909.0,0.81144637]
[1764699384156,0.00176701,91910.0,91909.0,0.79404637]
[1764699384406,0.00176701,91910.0,91909.0,0.81144637]
[1764699384620,0.00176701,91910.0,91909.0,0.78950462]
[1764699384815,0.00176701,91910.0,91909.0,0.70759462]
[1764699385443,0.00176701,91910.0,91909.0,0.72499462]
[1764699385884,0.00176701,91910.0,91909.0,0.28052654]
[1764699386522,0.06296,91931.0,91909.0,0.28052654]
[1764699386523,0.0002,91950.0,91939.0,0.21753553]
[1764699386731,0.0003153,91940.0,91939.0,0.66315553]
[1764699386940,0.00118575,91940.0,91939.0,0.66315553]
[1764699387980,0.00218575,91940.0,91939.0,0.66315553]
[1764699388150,0.00118575,91940.0,91939.0,0.66315553]
[1764699388522,0.00218575,91940.0,91939.0,0.66315553]
[1764699388760,0.00118575,91940.0,91939.0,0.72567852]
[1764699389169,0.00218575,91940.0,91939.0,0.72567852]
[1764699389608,0.00218575,91940.0,91939.0,0.66315553]
[1764699390024,0.00218575,91940.0,91930.0,0.01087784]
[1764699390221,0.0013153,91940.0,91939.0,0.0174]
[1764699390646,0.0003153,91940.0,91939.0,0.23493553]
[1764699390862,0.0003153,91940.0,91939.0,0.27564553]
[1764699391264,0.0003153,91940.0,91938.0,0.02576]
[1764699391265,0.01087677,91939.0,91938.0,0.4]
[1764699391478,0.2696723,91939.0,91938.0,0.4]
[1764699391707,0.06325201,91939.0,91938.0,0.4]
[1764699391914,0.25879553,91939.0,91938.0,0.4]
[1764699392473,0.32175553,91939.0,91938.0,0.4]
[1764699392862,0.10422,91939.0,91938.0,0.4]
[1764699393124,0.02230731,91940.0,91939.0,0.21753553]
[1764699393125,0.0003153,91940.0,91939.0,0.21753553]
[1764699393354,0.0003153,91940.0,91939.0,0.25675553]
[1764699393790,0.0003153,91940.0,91939.0,0.23493553]
[1764699394191,0.0003153,91940.0,91939.0,0.23593553]
[1764699394316,0.0003153,91940.0,91939.0,0.27915553]
[1764699394947,0.0003153,91940.0,91939.0,0.33574553]
[1764699395155,0.0003153,91940.0,91939.0,0.27415553]
[1764699395357,0.21749097,91958.0,91948.0,0.21751251]
[1764699395358,0.02895,91949.0,91948.0,0.21751251]
[1764699395664,0.03008148,91949.0,91948.0,0.21751251]
[1764699395908,0.00113148,91949.0,91948.0,0.25943251]
[1764699397022,0.00113148,91949.0,91948.0,0.26043251]
[1764699397426,0.00113148,91949.0,91948.0,0.21751251]
[1764699397632,0.03225148,91949.0,91948.0,0.23991251]
[1764699398381,0.03225148,91949.0,91948.0,0.23591251]
[1764699398731,0.03225148,91949.0,91948.0,0.23891251]
[1764699398938,0.03225148,91949.0,91948.0,0.23791251]
[1764699399325,0.03225148,91949.0,91948.0,0.0204]
[1764699399529,0.28864336,91949.0,91948.0,0.003]
[1764699399726,0.28864336,91949.0,91948.0,0.004]
[1764699400387,0.34877336,91949.0,91948.0,0.001]
[1764699400557,0.21753553,91939.0,91938.0,0.4]
[1764699400824,0.27273993,91939.0,91938.0,0.4]
[1764699401027,0.33286993,91939.0,91938.0,0.4]
[1764699401865,0.323,91958.0,91940.0,2.0]
[1764699402090,0.0002,91960.0,91958.0,0.21749059]
[1764699402713,0.0002753,91960.0,91959.0,0.05932]
[1764699402936,0.0002753,91960.0,91959.0,0.12039]
[1764699403399,0.0002753,91960.0,91958.0,0.21749059]
[1764699403808,0.0002753,91960.0,91959.0,0.0174]
[1764699404020,0.0002753,91960.0,91959.0,0.006]
[1764699404232,0.0002753,91960.0,91959.0,0.001]
[1764699404233,0.06115462,91960.0,91959.0,0.001]
[1764699404875,0.01087322,91969.0,91959.0,0.001]
[1764699404876,0.23378496,91971.0,91964.0,0.01087382]
[1764699405080,0.0108737,91965.0,91958.0,0.01087452]
[1764699405290,0.03888,91959.0,91958.0,0.001]
[1764699405688,0.09901,91959.0,91957.0,0.21749268]
[1764699405897,0.06085291,91958.0,91957.0,0.21749268]
[1764699406108,0.12098291,91958.0,91957.0,0.4]
[1764699406346,0.06013,91967.0,91966.0,0.21747167]
[1764699406552,0.09125,91974.0,91969.0,0.21746359]
[1764699406762,0.09125,91974.0,91967.0,0.22833771]
[1764699406763,0.23378447,91971.0,91967.0,0.22833771]
[1764699406969,0.0163244,91971.0,91969.0,0.21746421]
[1764699407731,0.0163244,91971.0,91969.0,0.21346421]
[1764699409078,0.0163244,91971.0,91969.0,0.21446421]
[1764699409926,0.0163244,91971.0,91969.0,0.21746421]
[1764699410330,0.06013,91979.0,91977.0,0.01087228]
[1764699410551,0.04199216,91978.0,91972.0,0.01087287]
[1764699410739,0.07172578,91972.0,91969.0,0.004]
[1764699411107,0.07717731,91970.0,91969.0,0.004]
[1764699411223,0.07717731,91970.0,91969.0,0.001]
[1764699411438,0.01087382,91964.0,91960.0,0.01087429]
[1764699411637,0.07,91961.0,91959.0,0.23488766]
[1764699412333,0.07,91961.0,91959.0,0.21748766]
[1764699412722,0.08087417,91961.0,91958.0,0.0174]
[1764699412920,0.03888,91959.0,91958.0,0.0174]
[1764699413569,0.03888,91959.0,91951.0,0.01087535]
[1764699413570,0.01087476,91956.0,91951.0,0.01087535]
[1764699413777,0.21749495,91957.0,91955.0,0.0174]
[1764699413923,0.08210291,91959.0,91957.0,0.21749146]
[1764699414126,0.28145159,91961.0,91957.0,0.21749146]
[1764699414334,0.03888,91958.0,91957.0,0.21749146]
[1764699414512,0.03112,91961.0,91960.0,0.21748586]
[1764699415128,0.03112,91961.0,91959.0,0.2174878]
[1764699415323,0.25947778,91961.0,91958.0,0.001]
[1764699415531,0.25947782,91961.0,91958.0,0.21749006]
[1764699415728,0.03888,91959.0,91958.0,0.21749006]
[1764699417097,0.03888,91959.0,91958.0,0.22049006]
[1764699417809,0.33847113,91959.0,91958.0,0.004]
[1764699418001,0.31649822,91959.0,91958.0,0.003]
[1764699418304,0.33989257,91959.0,91958.0,0.004]
[1764699418532,0.66289257,91959.0,91958.0,0.004]
[1764699418903,0.04030144,91959.0,91958.0,0.003]
[1764699419117,0.25778966,91959.0,91958.0,0.003]
[1764699419313,0.25778966,91959.0,91958.0,0.001]
[1764699419870,0.25778966,91959.0,91958.0,0.003]
[1764699420219,0.25778966,91959.0,91958.0,0.22049059]
[1764699420220,0.00142144,91959.0,91958.0,0.22049059]
[1764699420451,0.00142144,91959.0,91958.0,0.003]
[1764699420786,0.21890966,91959.0,91958.0,0.003]
[1764699420997,0.21890966,91959.0,91958.0,0.22049059]
[1764699420998,0.00142144,91959.0,91958.0,0.22049059]
[1764699421174,0.00142144,91959.0,91958.0,0.21949059]
[1764699421613,0.00142144,91959.0,91958.0,0.22049059]
[1764699421814,0.00142144,91959.0,91958.0,0.24223964]
[1764699421934,0.00142144,91959.0,91958.0,0.22049059]
[1764699422343,0.00142144,91959.0,91958.0,0.21849059]
[1764699422821,0.00142144,91959.0,91958.0,0.24323964]
[1764699423066,0.00142144,91959.0,91958.0,0.24023964]
[1764699423274,0.00142144,91959.0,91958.0,0.24423964]
[1764699423483,0.00142144,91959.0,91958.0,0.22249059]
[1764699423730,0.00142144,91959.0,91958.0,0.22149059]
[1764699423928,0.00142144,91959.0,91958.0,0.22249059]
[1764699424762,0.00142144,91959.0,91958.0,0.36917139]
[1764699424970,0.00142144,91959.0,91958.0,0.34742234]
[1764699425811,0.00142144,91959.0,91958.0,0.67042234]
[1764699426232,0.00142144,91959.0,91958.0,0.54549059]
[1764699426433,0.00142144,91959.0,91958.0,0.58331059]
[1764699426653,0.00142144,91959.0,91958.0,0.60071059]
[1764699426866,0.00142144,91959.0,91958.0,0.65661059]
[1764699428610,0.00142144,91959.0,91958.0,0.33361059]
[1764699429143,0.00142144,91959.0,91958.0,0.35555234]
[1764699429898,0.00142144,91959.0,91958.0,0.33361059]
[1764699431073,0.00142144,91959.0,91958.0,0.35555234]
[1764699432876,0.21636475,91978.0,91975.0,0.21745006]
[1764699433398,0.0493424,91976.0,91971.0,0.22833279]
[1764699433753,0.21748822,91959.0,91958.0,0.004]
[1764699434072,0.30275262,91959.0,91958.0,0.004]
[1764699434201,0.36356262,91959.0,91958.0,0.004]
[1764699434631,0.38553553,91959.0,91958.0,0.004]
[1764699435313,0.01087547,91950.0,91946.0,0.01087594]
[1764699435517,0.01087571,91948.0,91944.0,0.01087618]
[1764699435752,0.0467944,91945.0,91943.0,0.21752597]
[1764699436191,0.25599384,91944.0,91940.0,0.01087665]
[1764699436362,0.03847,91944.0,91943.0,0.21752607]
[1764699436565,0.03047,91945.0,91944.0,0.21752371]
[1764699437825,0.01087512,91953.0,91944.0,0.21752371]
[1764699437826,0.02197291,91954.0,91951.0,0.22838022]
[1764699437952,0.01087488,91955.0,91951.0,0.01087535]
[1764699438159,0.06894,91952.0,91951.0,0.22838129]
[1764699438539,0.03047,91952.0,91951.0,0.22838129]
[1764699439784,0.34725478,91952.0,91951.0,0.003]
[1764699439983,0.36922769,91952.0,91951.0,0.003]
[1764699440181,0.36922769,91952.0,91951.0,0.004]
[1764699441037,0.34725478,91952.0,91951.0,0.003]
[1764699441791,0.21752192,91945.0,91942.0,0.02827642]
[1764699441994,0.0163244,91943.0,91942.0,0.0174]
[1764699442190,0.2175308,91941.0,91938.0,0.01087689]
[1764699442394,0.03847,91941.0,91939.0,0.0174]
[1764699442597,0.09928,91941.0,91939.0,0.0174]
[1764699442840,0.03847,91941.0,91939.0,0.0174]
[1764699443054,0.03847,91941.0,91940.0,0.21760847]
[1764699443224,0.03847,91941.0,91940.0,0.0040753]
[1764699443828,0.03847,91941.0,91940.0,0.0050753]
[1764699444154,0.22839859,91945.0,91941.0,0.2175308]
[1764699444357,0.0110804,91942.0,91941.0,0.22840734]
[1764699444717,0.0110804,91942.0,91940.0,0.0050753]
[1764699444923,0.0110804,91942.0,91940.0,0.0010753]
[1764699445126,0.0110804,91942.0,91941.0,0.2175308]
[1764699445325,0.0110804,91942.0,91941.0,0.2205308]
[1764699445530,0.0110804,91942.0,91941.0,0.2175308]
[1764699446529,0.0110804,91942.0,91941.0,0.2215308]
[1764699446681,0.2783275,91947.0,91941.0,0.2215308]
[1764699446682,0.02197291,91954.0,91949.0,0.01087559]
[1764699446890,0.0467944,91959.0,91956.0,0.01087476]
[1764699447089,0.0467944,91959.0,91957.0,0.2174929]
[1764699447288,0.03047,91966.0,91963.0,0.21747876]
[1764699447510,0.0163244,91964.0,91963.0,0.22835269]
[1764699447929,0.06566822,91964.0,91958.0,0.02154]
[1764699448104,0.00023199,91967.0,91964.0,0.01087382]
[1764699448310,0.00023199,91967.0,91966.0,0.27750167]
[1764699448878,0.00023199,91967.0,91966.0,0.35534342]
[1764699449085,0.00023199,91967.0,91966.0,0.33340167]
[1764699449936,0.00023199,91967.0,91966.0,0.33540167]
[1764699450264,0.00023199,91967.0,91966.0,0.27950167]
[1764699450994,0.09951199,91967.0,91966.0,0.002]
[1764699451204,0.00023199,91967.0,91966.0,0.002]
[1764699451404,0.01655639,91967.0,91966.0,0.002]
[1764699452180,0.23402665,91967.0,91964.0,0.21747561]
[1764699452378,0.24490011,91967.0,91966.0,0.002]
[1764699452829,0.05502639,91967.0,91966.0,0.21847167]